bitfinex-derivatives/quotes_SOLF0:USTF0_20260203
["timestamp","ask_amount","ask_price","bid_price","bid_amount"]
[1770109354243,8.6554,104.06,104.01,13.58628787]
[1770109354441,11.6080398,104.07,104.02,4.92688787]
[1770109354646,8.6546,104.07,104.02,4.92688787]
[1770109360749,8.6556,104.06,104.02,4.92688787]
[1770109365158,8.6556,104.06,104.01,23.81120287]
[1770109365457,8.6556,104.06,104.01,28.75889808]
[1770109365759,11.6090398,104.06,104.01,28.75889808]
[1770109366055,11.6090398,104.06,104.01,23.81120287]
[1770109366257,8.6561,104.05,104.0,28.75889808]
[1770109367158,2.9534398,104.04,104.0,23.81120287]
[1770109367460,2.9534398,104.04,103.99,28.75889808]
[1770109367651,2.9534398,104.04,103.99,23.81120287]
[1770109367954,2.9534398,104.02,103.97,28.74607984]
[1770109368150,134.6517,104.05,103.97,4.93487697]
[1770109368151,2.9534398,104.03,103.97,4.93487697]
[1770109369053,11.6112398,104.03,103.97,4.93487697]
[1770109369660,2.9534398,104.02,103.97,4.93487697]
[1770109370355,11.61701416,104.03,103.97,4.93487697]
[1770109372555,2.95921416,104.02,103.97,4.93487697]
[1770109373857,2.95921416,103.98,103.93,4.85968635]
[1770109374057,2.95921416,103.97,103.93,4.85968635]
[1770109374563,2.95921416,103.96,103.92,2.77948636]
[1770109375362,2.95921416,103.97,103.92,2.77948636]
[1770109375954,2.95921416,103.94,103.89,4.87699087]
[1770109376157,2.95921416,103.92,103.87,4.87699087]
[1770109376561,2.95921416,103.93,103.87,13.54799087]
[1770109377756,2.95921416,103.94,103.88,8.6701]
[1770109377958,11.62411416,103.95,103.89,4.91156045]
[1770109378662,2.95921416,103.94,103.89,4.91156045]
[1770109378961,2.95921416,103.95,103.89,13.58096045]
[1770109379464,2.95921416,103.94,103.89,13.58096045]
[1770109380063,2.95921416,103.95,103.9,13.61439636]
[1770109380257,2.95921416,103.97,103.91,4.94589636]
[1770109380657,518.3721,103.99,103.91,4.94589636]
[1770109380860,2.95921416,103.95,103.9,13.61449636]
[1770109381163,2.95921416,103.96,103.91,4.94589636]
[1770109382261,8.6637,103.96,103.89,8.6689]
[1770109382464,518.4309,103.96,103.87,4.95687426]
[1770109382758,518.4309,103.96,103.89,13.62567426]
[1770109382759,2.95921416,103.95,103.89,13.62567426]
[1770109383163,2.95921416,103.95,103.9,4.95687426]
[1770109383558,2.95921416,103.97,103.91,4.92163833]
[1770109384159,2.95921416,103.96,103.91,4.92163833]
[1770109384863,2.95921416,103.96,103.91,13.58853833]
[1770109388570,11.62201416,103.97,103.91,13.58853833]
[1770109388772,2.95921416,103.96,103.91,13.58853833]
[1770109390371,11.62201416,103.97,103.91,13.58853833]
[1770109391075,2.95921416,103.97,103.92,8.6667]
[1770109391270,2.95921416,103.97,103.92,13.55157122]
[1770109391569,8.6612,103.99,103.93,4.8730196]
[1770109391777,17.753762,104.15,103.96,4.8730196]
[1770109391778,2.95921416,104.02,103.96,4.8730196]
[1770109392269,2.95921416,104.02,103.97,8.6627]
[1770109392466,2.95921416,104.01,103.96,4.8730196]
[1770109394276,2.95921416,104.01,103.96,13.5365196]
[1770109398578,11.61781416,104.02,103.97,4.7838847]
[1770109398776,2.95921416,104.01,103.97,4.7838847]
[1770109399980,11.61781416,104.02,103.97,4.7838847]
[1770109400479,8.6596,104.01,103.97,4.7838847]
[1770109400781,8.6596,104.01,103.96,13.4332583]
[1770109401877,2.95921416,104.02,103.96,4.7697583]
[1770109402080,11.61951416,104.0,103.94,4.7660461]
[1770109402977,11.61881416,104.01,103.95,4.7660461]
[1770109403369,8.6596,104.01,103.95,4.7660461]
[1770109403572,8.6596,104.01,103.96,4.7660461]
[1770109406076,8.661,104.0,103.96,4.7660461]
[1770109407082,2.95921416,104.01,103.96,4.7660461]
[1770109407784,2.95921416,104.02,103.96,4.7660461]
[1770109408080,8.6601,104.01,103.96,4.7660461]
[1770109409387,11.61981416,104.0,103.94,13.42118708]
[1770109412289,8.6611,103.99,103.94,4.75598708]
[1770109412591,2.95921416,103.97,103.92,4.74905561]
[1770109412889,8.6638,103.96,103.9,13.41765561]
[1770109413092,8.6638,103.96,103.91,4.74905561]
[1770109413281,2.95921416,103.97,103.91,4.74905561]
[1770109413282,11.62211416,103.97,103.91,4.74905561]
[1770109413691,2.95921416,103.99,103.93,4.74827049]
[1770109414095,521.34281416,104.0,103.93,4.74827049]
[1770109414297,383.66,104.0,103.94,4.74827049]
[1770109414594,383.66,104.0,103.94,7.70748465]
[1770109414798,8.6603,104.0,103.95,4.74827049]
[1770109415293,8.6612,103.99,103.93,2.95921416]
[1770109415494,8.6612,103.99,103.94,4.74827049]
[1770109416594,8.6603,104.0,103.95,4.77730947]
[1770109418494,11.61951416,104.0,103.95,4.77730947]
[1770109419199,8.6603,104.0,103.95,4.77730947]
[1770109419402,137.63401416,104.04,103.97,4.78835617]
[1770109419597,521.31401416,104.04,103.97,4.78835617]
[1770109420302,8.6586,104.02,103.97,4.78835617]
[1770109423200,11.61881416,104.01,103.95,13.4465039]
[1770109423702,11.61881416,104.01,103.95,4.7822039]
[1770109427205,8.6604,104.0,103.95,4.7822039]
[1770109427801,8.6611,103.99,103.95,4.7822039]
[1770109429008,8.6604,104.0,103.95,4.7822039]
[1770109429706,8.6613,103.99,103.95,4.7822039]
[1770109433408,8.6601,104.01,103.96,4.6619249]
[1770109433710,8.6601,104.01,103.97,4.64086389]
[1770109434709,8.6601,104.01,103.97,7.60095666]
[1770109436312,8.6601,104.01,103.97,4.64086389]
[1770109436915,3.60853225,104.05,103.98,4.4947582]
[1770109437112,3.60853225,104.05,103.98,7.45485097]
[1770109437612,8.657,104.04,104.0,3.71283118]
[1770109441910,8.657,104.04,103.98,3.71283118]
[1770109441911,3.60853225,104.03,103.98,3.71283118]
[1770109442213,6.56862502,104.03,103.98,3.71283118]
[1770109442414,8.6588,104.02,103.98,3.71283118]
[1770109443112,12.26633225,104.03,103.98,3.71283118]
[1770109443417,3.60853225,104.05,104.0,3.71283118]
[1770109443617,3.60853225,104.07,104.01,3.71283118]
[1770109444315,12.26363225,104.07,104.02,3.71283118]
[1770109444620,12.26363225,104.07,104.02,27.52403405]
[1770109444818,15.22372502,104.07,104.02,27.52403405]
[1770109445014,8.6553,104.06,104.02,27.52403405]
[1770109445513,3.60853225,104.04,103.99,23.81120287]
[1770109445715,3.60853225,104.04,103.99,27.52403405]
[1770109445916,3.60853225,104.04,103.99,3.71283118]
[1770109446118,6.56862502,104.04,103.99,3.71283118]
[1770109446509,15.22562502,104.04,103.99,3.71283118]
[1770109447016,12.26553225,104.04,103.99,3.71283118]
[1770109449620,3.60853225,104.02,103.97,27.52403405]
[1770109451323,12.26793225,104.02,103.97,27.52403405]
[1770109453719,12.26793225,104.02,103.97,3.71283118]
[1770109454019,8.6579,104.03,103.97,6.67292395]
[1770109454224,3.60853225,104.03,103.97,6.67292395]
[1770109454426,12.26723225,104.02,103.97,3.71283118]
[1770109454726,15.22732502,104.02,103.95,240.70842682]
[1770109454924,8.6595,104.01,103.95,229.08403405]
[1770109455222,8.6595,104.01,103.96,3.71283118]
[1770109459922,8.6587,104.02,103.97,3.71283118]
[1770109461027,12.37831537,104.01,103.95,39.11191853]
[1770109461325,12.37831537,104.01,103.95,36.15182576]
[1770109461524,12.37831537,104.01,103.96,3.67642289]
[1770109461720,15.33840814,104.01,103.96,3.67642289]
[1770109461921,6.67900814,104.0,103.94,27.48762576]
[1770109462124,6.67900814,103.99,103.94,3.67642289]
[1770109463426,15.34090814,103.99,103.94,3.67642289]
[1770109463721,15.34090814,103.99,103.94,27.48762576]
[1770109465424,12.38081537,103.99,103.94,27.48762576]
[1770109469530,15.34090814,103.99,103.94,27.48762576]
[1770109470233,12.38081537,103.99,103.94,27.48762576]
[1770109472734,8.6605,104.0,103.95,3.67642289]
[1770109472934,8.6605,104.0,103.95,6.63651566]
[1770109473133,8.6605,104.0,103.95,30.44771853]
[1770109473334,8.6605,104.0,103.95,27.48762576]
[1770109473535,12.38011537,103.99,103.94,23.81120287]
[1770109473834,15.34020814,103.99,103.94,23.81120287]
[1770109474434,12.38011537,103.99,103.94,23.81120287]
[1770109474826,12.38011537,103.99,103.94,27.48762576]
[1770109475737,12.38011537,103.99,103.94,3.67642289]
[1770109481442,3.71891537,103.98,103.94,3.67642289]
[1770109483643,0.70954184,103.98,103.95,23.81120287]
[1770109483843,9.37154184,103.98,103.95,23.81120287]
[1770109485442,8.6628,103.97,103.92,6.63651566]
[1770109485650,8.6628,103.97,103.93,3.67642289]
[1770109486350,0.70954184,103.98,103.93,3.67642289]
[1770109486351,9.37174184,103.98,103.93,3.67642289]
[1770109489346,9.37174184,103.98,103.93,12.34252289]
[1770109489554,0.70954184,103.98,103.94,3.67642289]
[1770109489748,8.6613,103.99,103.94,3.67642289]
[1770109489949,2.96009277,104.0,103.94,3.67642289]
[1770109489950,12.37941537,104.0,103.94,12.34162289]
[1770109491356,12.39129848,103.99,103.94,3.67642289]
[1770109491650,15.35138326,103.99,103.94,3.67642289]
[1770109492357,3.73009848,103.99,103.94,12.34172289]
[1770109492954,12.22424635,104.0,103.95,3.68544871]
[1770109493456,383.68,104.02,103.93,29.6114537]
[1770109493457,3.56374635,103.98,103.93,41.96280241]
[1770109493756,3.56374635,103.98,103.93,12.35134871]
[1770109494854,3.56374635,103.98,103.93,3.68544871]
[1770109495457,3.56374635,103.98,103.93,27.63965998]
[1770109495756,6.52383113,103.98,103.93,27.63965998]
[1770109497556,3.56374635,103.98,103.94,3.68544871]
[1770109499058,3.56374635,103.98,103.94,27.63965998]
[1770109500957,2.96008478,104.02,103.95,3.68544871]
[1770109501156,3.56374635,104.02,103.97,27.63965998]
[1770109501863,12.22294635,104.02,103.97,27.63965998]
[1770109502064,6.52383113,104.05,103.99,3.68544871]
[1770109502265,3.56374635,104.04,103.99,27.63965998]
[1770109503155,3.56374635,104.04,103.99,3.68544871]
[1770109503364,12.22074635,104.04,103.99,3.68544871]
[1770109503566,3.56374635,104.04,103.99,27.63965998]
[1770109503760,3.56374635,104.04,103.99,3.68544871]
[1770109504062,3.56374635,104.04,103.99,12.34644871]
[1770109504660,3.56374635,104.04,104.0,3.68544871]
[1770109504860,8.6562,104.05,104.0,3.68544871]
[1770109505159,3.56374635,104.05,104.0,12.34544871]
[1770109505556,3.56374635,104.05,104.0,15.30553349]
[1770109505760,12.21834635,104.07,104.01,15.30493349]
[1770109505962,12.21834635,104.07,104.02,3.68544871]
[1770109505963,3.56374635,104.07,104.02,3.68544871]
[1770109506161,3.56374635,104.09,104.03,3.68544871]
[1770109506362,3.56374635,104.09,104.04,6.64553349]
[1770109506766,3.56374635,104.09,104.04,3.68544871]
[1770109506956,3.56374635,104.07,104.02,3.68544871]
[1770109509567,3.56374635,104.09,104.04,3.68544871]
[1770109510366,12.21684635,104.09,104.04,3.68544871]
[1770109510669,15.17693113,104.09,104.04,3.68544871]
[1770109512472,12.21684635,104.09,104.04,3.68544871]
[1770109512771,15.17693113,104.09,104.04,3.68544871]
[1770109513671,8.652,104.1,104.06,3.68544871]
[1770109518174,2.96008478,104.15,104.08,3.68544871]
[1770109518382,3.56374635,104.15,104.09,3.68544871]
[1770109518668,12.21164635,104.15,104.09,3.68544871]
[1770109518869,12.21164635,104.15,104.1,3.68544871]
[1770109519075,3.56374635,104.15,104.1,3.68544871]
[1770109521476,6.47298234,104.14,104.08,3.75551966]
[1770109521675,6.47298234,104.14,104.06,3.75551966]
[1770109521676,6.47298234,104.11,104.06,3.75551966]
[1770109521870,134.5513,104.13,104.04,3.75551966]
[1770109521871,15.12508234,104.1,104.04,3.75551966]
[1770109522077,2.96008478,104.09,104.04,3.75551966]
[1770109522372,3.51289756,104.1,104.04,3.75551966]
[1770109522373,6.47298234,104.1,104.04,3.75551966]
[1770109523274,8.6529,104.09,104.04,3.75551966]
[1770109523478,6.47298234,104.1,104.05,3.75551966]
[1770109523479,3.51289756,104.1,104.05,3.75551966]
[1770109523876,15.12558234,104.1,104.05,3.75551966]
[1770109524068,6.47298234,104.1,104.05,3.75551966]
[1770109524275,3.51289756,104.08,104.03,3.75551966]
[1770109525079,12.16649756,104.08,104.03,3.75551966]
[1770109525975,8.6536,104.08,104.03,3.75551966]
[1770109526278,8.6527,104.1,104.05,3.75551966]
[1770109526470,6.47298234,104.1,104.05,3.75551966]
[1770109527276,8.6528,104.09,104.05,3.75551966]
[1770109529470,6.47298234,104.08,104.02,3.75551966]
[1770109529974,3.51289756,104.08,104.02,3.75551966]
[1770109530169,6.47298234,104.1,104.04,3.75551966]
[1770109531175,8.6535,104.09,104.04,3.75551966]
[1770109531376,3.51289756,104.1,104.04,3.75551966]
[1770109531679,6.47298234,104.1,104.04,3.75551966]
[1770109532277,8.6528,104.09,104.04,3.75551966]
[1770109532773,15.12508234,104.1,104.04,3.75551966]
[1770109533778,12.16499756,104.1,104.05,3.75551966]
[1770109534375,15.12508234,104.1,104.05,3.75551966]
[1770109534575,6.47298234,104.09,104.03,12.41311966]
[1770109535273,6.47298234,104.09,104.04,3.75551966]
[1770109536882,15.12418234,104.11,104.04,3.75551966]
[1770109537373,15.12418234,104.11,104.04,6.71560444]
[1770109537574,6.47298234,104.11,104.05,12.41151966]
[1770109538583,15.12468234,104.11,104.05,3.75551966]
[1770109538982,3.51289756,104.11,104.06,12.41071966]
[1770109539284,6.47298234,104.13,104.07,3.75551966]
[1770109540483,15.12268234,104.13,104.07,3.75551966]
[1770109541182,15.12268234,104.13,104.07,12.40981966]
[1770109541794,6.47298234,104.11,104.05,3.75551966]
[1770109542086,2.96008478,104.1,104.05,3.75551966]
[1770109542787,6.47298234,104.11,104.05,3.75551966]
[1770109543290,15.12478234,104.11,104.05,3.75551966]
[1770109544793,6.47298234,104.09,104.04,12.41231966]
[1770109545184,6.47298234,104.09,104.04,3.75551966]
[1770109546387,15.12578234,104.09,104.04,3.75551966]
[1770109547494,12.16569756,104.09,104.04,3.75551966]
[1770109549295,15.12578234,104.09,104.04,3.75551966]
[1770109550389,12.16569756,104.09,104.04,3.75551966]
[1770109553699,3.51289756,104.09,104.04,12.41241966]
[1770109553896,3.51289756,104.09,104.05,3.51925792]
[1770109554093,3.5812296,104.11,104.06,3.51925792]
[1770109555297,12.2325296,104.11,104.06,3.51925792]
[1770109555498,3.5812296,104.11,104.06,3.51925792]
[1770109557096,6.53629543,104.11,104.06,3.51925792]
[1770109557301,15.18739543,104.11,104.06,3.51925792]
[1770109557496,6.53629543,104.13,104.06,3.51925792]
[1770109557697,6.53629543,104.12,104.06,3.51925792]
[1770109558003,6.53629543,104.14,104.07,3.51925792]
[1770109558205,6.53629543,104.14,104.08,3.51925792]
[1770109558395,15.18529543,104.14,104.08,3.51925792]
[1770109558591,3.5812296,104.13,104.08,3.51925792]
[1770109560298,6.53629543,104.13,104.08,3.51925792]
[1770109561199,3.5812296,104.13,104.08,3.51925792]
[1770109562404,15.18589543,104.13,104.08,3.51925792]
[1770109562605,3.5812296,104.12,104.06,36.12816919]
[1770109562801,15.18839543,104.1,104.05,23.95421127]
[1770109563002,15.18839543,104.1,104.04,27.47346919]
[1770109563500,15.18909543,104.09,104.04,27.47346919]
[1770109563700,15.18909543,104.09,104.04,3.51925792]
[1770109563900,3.5812296,104.09,104.04,3.51925792]
[1770109565712,12.2340296,104.09,104.04,3.51925792]
[1770109567311,12.2340296,104.09,104.04,6.47432375]
[1770109567813,3.5812296,104.09,104.05,3.51925792]
[1770109568411,517.7895,104.13,104.05,3.51925792]
[1770109568412,3.5812296,104.11,104.05,3.51925792]
[1770109569316,12.2326296,104.11,104.05,3.51925792]
[1770109570212,3.5812296,104.1,104.05,3.51925792]
[1770109572617,3.5812296,104.1,104.05,12.17525792]
[1770109573113,3.5812296,104.12,104.06,3.51925792]
[1770109573319,3.5812296,104.12,104.06,12.17445792]
[1770109573710,3.5812296,104.12,104.07,3.51925792]
[1770109574422,3.5812296,104.11,104.05,27.47346919]
[1770109575316,3.5812296,104.11,104.06,36.12856919]
[1770109575513,3.5812296,104.11,104.06,12.17435792]
[1770109576418,3.5812296,104.14,104.08,3.51925792]
[1770109577215,3.5812296,104.14,104.08,12.17215792]
[1770109577616,3.5812296,104.13,104.08,12.17215792]
[1770109581924,6.53629543,104.13,104.08,12.17215792]
[1770109583225,6.4205708,104.12,104.07,23.95421127]
[1770109583420,3.46550497,104.11,104.07,3.41066595]
[1770109585625,3.46550497,104.11,104.05,2.95506583]
[1770109585626,15.0717708,104.11,104.05,36.02087722]
[1770109585825,15.0717708,104.11,104.05,12.06666595]
[1770109586020,6.4205708,104.1,104.05,3.41066595]
[1770109586925,3.46550497,104.1,104.05,3.41066595]
[1770109587526,12.11790497,104.1,104.05,3.41066595]
[1770109587731,3.46550497,104.12,104.06,3.41066595]
[1770109588225,3.46550497,104.12,104.06,12.06586595]
[1770109589024,6.4205708,104.12,104.06,12.06586595]
[1770109589227,3.46550497,104.11,104.06,12.06586595]
[1770109591024,15.0718708,104.11,104.06,3.41066595]
[1770109591225,3.46550497,104.14,104.06,3.41066595]
[1770109591424,3.46550497,104.12,104.07,3.41066595]
[1770109591619,6.4205708,104.11,104.05,35.9904836]
[1770109591823,3.46550497,104.1,104.05,27.3345836]
[1770109592227,3.46550497,104.09,104.05,23.92391765]
[1770109592526,6.4205708,104.09,104.03,27.3345836]
[1770109592727,6.4205708,104.09,104.03,35.9922836]
[1770109592926,6.4205708,104.08,104.03,3.41066595]
[1770109593427,3.46550497,104.08,104.03,3.41066595]
[1770109594330,3.46550497,104.08,104.03,12.06836595]
[1770109596326,3.46550497,104.07,104.03,3.41066595]
[1770109596533,6.4205708,104.07,104.03,3.41066595]
[1770109596727,3.46550497,104.07,104.03,3.41066595]
[1770109598032,6.4205708,104.07,104.03,3.41066595]
[1770109598232,6.4205708,104.07,104.01,35.9933836]
[1770109599235,6.4205708,104.07,104.02,12.06916595]
[1770109600532,3.46550497,104.07,104.02,12.06916595]
[1770109601333,6.4205708,104.07,104.02,12.06916595]
[1770109601831,3.46550497,104.07,104.02,12.06916595]
[1770109602633,6.4205708,104.07,104.02,12.06916595]
[1770109603931,3.46550497,104.05,104.01,35.9937836]
[1770109604135,6.4205708,104.05,104.01,3.41066595]
[1770109604936,3.46550497,104.05,104.01,3.41066595]
[1770109605137,6.4205708,104.05,104.0,8.6601]
[1770109605332,2.95506583,104.04,103.99,3.41066595]
[1770109606036,6.4205708,104.05,104.0,3.41066595]
[1770109606237,2.95506583,104.04,104.0,3.41066595]
[1770109606636,15.0767708,104.05,104.0,3.41066595]
[1770109609241,3.46550497,104.04,104.0,3.41066595]
[1770109609442,3.46550497,104.04,103.99,8.661]
[1770109609741,3.46550497,104.04,103.99,12.07166595]
[1770109614943,12.12250497,104.04,103.99,3.41066595]
[1770109617639,3.46550497,104.04,104.0,3.65240448]
[1770109620543,6.4232927,104.04,104.0,3.65240448]
[1770109620739,2.95778773,104.01,103.96,3.65240448]
[1770109621048,6.44830122,104.01,103.96,3.65240448]
[1770109621350,6.44830122,104.03,103.96,3.65240448]
[1770109621744,15.10620122,104.03,103.96,3.65240448]
[1770109622047,3.49051349,104.02,103.97,3.65240448]
[1770109622242,3.49051349,104.01,103.97,3.65240448]
[1770109622451,6.44830122,103.99,103.93,3.65240448]
[1770109622648,6.44830122,103.99,103.93,12.31840448]
[1770109623252,3.49051349,103.99,103.94,12.31760448]
[1770109623552,3.49051349,103.99,103.94,3.65240448]
[1770109627757,3.49051349,103.99,103.94,12.31760448]
[1770109628357,3.49051349,103.99,103.95,3.65240448]
[1770109630560,6.44830122,104.02,103.97,3.65240448]
[1770109631058,3.49051349,104.01,103.96,8.6635]
[1770109631359,6.44830122,104.01,103.96,8.6635]
[1770109631553,6.44830122,104.01,103.97,8.6626]
[1770109632054,3.49051349,104.01,103.97,8.6626]
[1770109633952,3.49051349,104.0,103.97,8.6626]
[1770109635056,6.44830122,104.02,103.98,8.6618]
[1770109635360,3.49051349,104.02,103.98,8.6618]
[1770109635551,3.49051349,104.02,103.97,3.65240448]
[1770109635956,8.6569,104.04,103.97,3.65240448]
[1770109635957,6.44830122,104.04,103.98,3.65240448]
[1770109636159,3.49051349,104.04,103.98,3.65240448]
[1770109636352,3.49051349,104.03,103.99,8.6609]
[1770109636557,6.44830122,104.03,103.98,3.65240448]
[1770109636963,6.44830122,104.03,103.98,12.31360448]
[1770109637959,3.49051349,104.03,103.98,12.31360448]
[1770109639768,3.49051349,104.03,103.98,3.65240448]
[1770109640865,12.14841349,104.03,103.98,3.65240448]
[1770109642271,3.61808109,104.02,103.98,3.65240448]
[1770109642659,6.57586882,103.99,103.93,3.77393005]
[1770109642864,134.6822,104.03,103.93,3.77393005]
[1770109642865,6.57586882,103.98,103.93,3.77393005]
[1770109643077,6.57586882,103.96,103.9,12.44243005]
[1770109643470,3.61808109,103.96,103.9,12.44243005]
[1770109643668,3.61808109,103.96,103.9,3.77393005]
[1770109644068,3.61808109,103.96,103.91,3.77393005]
[1770109644971,12.27958109,103.99,103.94,3.77393005]
[1770109647569,3.61808109,103.99,103.94,12.43903005]
[1770109647766,15.23606882,104.01,103.95,3.77393005]
[1770109647971,12.27828109,104.01,103.95,3.77393005]
[1770109648370,12.27828109,104.01,103.95,6.73171778]
[1770109648974,12.27828109,104.01,103.95,3.77393005]
[1770109649275,12.27828109,104.01,103.95,12.43823005]
[1770109651171,3.61808109,104.01,103.96,3.77393005]
[1770109651870,8.6578,104.03,103.97,3.77393005]
[1770109652065,8.6578,104.03,103.97,6.73171778]
[1770109652264,12.27588109,104.03,103.97,6.73171778]
[1770109652464,12.27588109,104.03,103.97,3.77393005]
[1770109654676,12.27588109,104.03,103.97,6.73171778]
[1770109655376,15.23366882,104.03,103.97,3.77393005]
[1770109656075,15.23366882,104.03,103.97,6.73171778]
[1770109656275,12.27588109,104.03,103.97,6.73171778]
[1770109657674,8.6586,104.02,103.97,6.73171778]
[1770109659275,3.61808109,104.0,103.94,3.77393005]
[1770109659581,3.61808109,103.99,103.94,3.77393005]
[1770109659777,3.61808109,103.98,103.92,15.39851778]
[1770109659975,3.61808109,103.97,103.92,3.77393005]
[1770109661379,12.28088109,103.97,103.92,3.77393005]
[1770109662578,8.6619,103.98,103.93,6.73171778]
[1770109663574,12.28088109,103.97,103.91,6.73171778]
[1770109663976,12.28088109,103.97,103.92,2.95778773]
[1770109665579,12.28088109,103.97,103.92,6.73171778]
[1770109666285,12.28088109,103.97,103.92,3.77393005]
[1770109666485,12.28088109,103.97,103.92,6.73171778]
[1770109667488,12.28088109,103.97,103.92,3.77393005]
[1770109668189,12.28088109,103.97,103.92,6.73171778]
[1770109668489,12.28088109,103.97,103.92,3.77393005]
[1770109669188,8.6639,103.96,103.92,3.77393005]
[1770109669688,3.61808109,103.99,103.93,3.77393005]
[1770109670185,3.45219744,103.97,103.91,27.36463203]
[1770109670589,3.45219744,103.97,103.92,3.44071438]
[1770109670890,12.11589744,103.96,103.9,30.32241976]
[1770109671287,12.11589744,103.96,103.91,3.44071438]
[1770109673694,12.11589744,103.96,103.92,23.92391765]
[1770109675284,8.6637,103.96,103.92,27.55001241]
[1770109675490,8.6629,103.97,103.93,23.92391765]
[1770109676189,8.662,103.98,103.93,26.88615865]
[1770109676386,8.662,103.98,103.94,27.55001241]
[1770109676788,8.6612,103.99,103.95,3.62609476]
[1770109677083,8.6612,103.99,103.95,30.51225341]
[1770109677287,8.6612,103.99,103.95,27.55001241]
[1770109680188,8.6603,104.0,103.95,27.55001241]
[1770109680392,3.66722574,104.02,103.97,3.62609476]
[1770109680589,3.66722574,104.02,103.97,27.55001241]
[1770109680785,8.6604,104.0,103.96,23.92391765]
[1770109681093,6.62946674,103.99,103.95,9.38491765]
[1770109681293,6.62946674,103.99,103.93,199.92609476]
[1770109681294,3.66722574,103.98,103.93,3.62609476]
[1770109681496,3.66722574,103.97,103.91,36.49323283]
[1770109681694,3.66722574,103.97,103.91,6.58833576]
[1770109682394,12.33012574,103.97,103.92,3.62609476]
[1770109682894,8.6629,103.97,103.93,3.62609476]
[1770109683694,8.662,103.98,103.93,3.62609476]
[1770109683890,8.662,103.98,103.93,6.58833576]
[1770109684586,12.32842574,103.99,103.94,3.62609476]
[1770109693402,8.662,103.98,103.94,3.62609476]
[1770109695605,12.32852574,103.99,103.95,3.62609476]
[1770109698214,12.32852574,103.99,103.93,26.87722726]
[1770109698409,12.32932574,103.98,103.93,30.50332202]
[1770109698712,12.32932574,103.98,103.93,27.54108102]
[1770109700014,8.6613,103.99,103.94,3.62609476]
[1770109700213,12.14460003,103.99,103.94,27.54108102]
[1770109709316,12.14460003,103.99,103.95,3.59100329]
[1770109710225,8.6605,104.0,103.96,3.59100329]
[1770109710523,8.6605,104.0,103.96,27.50598955]
[1770109710916,3.48330003,104.03,103.98,3.59100329]
[1770109712323,8.6588,104.02,103.98,3.59100329]
[1770109712518,12.14210003,104.02,103.98,3.59100329]
[1770109716429,3.48330003,104.03,103.98,3.59100329]
[1770109717329,12.14170003,104.03,103.98,3.59100329]
[1770109719829,8.6588,104.02,103.98,3.59100329]
[1770109721733,8.6596,104.01,103.96,6.55324429]
[1770109722133,8.6596,104.01,103.97,3.59100329]
[1770109722335,8.6596,104.01,103.97,6.55324429]
[1770109723336,8.6596,104.01,103.97,3.59100329]
[1770109724735,12.14200003,104.02,103.97,3.59100329]
[1770109724937,6.44554103,104.04,103.98,3.59100329]
[1770109725138,3.48330003,104.04,103.99,3.59100329]
[1770109725637,3.48330003,104.04,103.98,2.962241]
[1770109725833,3.48330003,104.04,103.97,30.46823055]
[1770109726134,3.48330003,104.04,103.98,3.59100329]
[1770109726338,12.14120003,104.03,103.98,3.59100329]
[1770109726537,12.14120003,104.03,103.98,27.50598955]
[1770109729241,12.14120003,104.03,103.99,23.91498626]
[1770109730239,12.14120003,104.03,103.98,27.50598955]
[1770109730642,8.6586,104.02,103.98,27.50598955]
[1770109730836,3.7040162,104.02,103.98,3.59100329]
[1770109732346,8.6595,104.01,103.98,3.59100329]
[1770109732542,3.7040162,104.02,103.98,3.59100329]
[1770109733241,8.6587,104.02,103.98,27.50598955]
[1770109733446,8.6587,104.02,103.99,3.59861141]
[1770109734045,8.658,104.03,103.99,3.59861141]
[1770109734447,3.52494785,104.04,104.0,3.59861141]
[1770109735448,12.18194785,104.04,104.0,3.59861141]
[1770109740254,8.657,104.04,104.0,3.59861141]
[1770109740653,12.18194785,104.04,104.0,3.59861141]
[1770109740951,12.18194785,104.04,103.98,6.55689511]
[1770109741151,6.48323155,104.03,103.98,3.59861141]
[1770109741358,3.52494785,104.02,103.96,6.55689511]
[1770109741556,3.52494785,104.02,103.97,3.59861141]
[1770109742251,6.48323155,104.02,103.97,3.59861141]
[1770109742654,3.52494785,104.02,103.97,3.59861141]
[1770109743557,12.18354785,104.02,103.97,3.59861141]
[1770109744855,8.6596,104.01,103.97,3.59861141]
[1770109745052,3.52494785,104.0,103.95,3.59861141]
[1770109745952,3.52494785,103.99,103.93,11.6236837]
[1770109746157,3.52494785,103.99,103.94,3.59861141]
[1770109747464,8.6612,103.99,103.95,3.59861141]
[1770109747856,3.52494785,103.98,103.93,3.59861141]
[1770109748058,6.48323155,103.97,103.93,3.59861141]
[1770109748461,12.18774785,103.97,103.93,3.59861141]
[1770109750662,8.662,103.98,103.93,3.59861141]
[1770109751565,12.18694785,103.98,103.93,3.59861141]
[1770109752968,12.18694785,103.98,103.93,6.55689511]
[1770109753364,12.18694785,103.98,103.93,3.59861141]
[1770109753769,12.18694785,103.98,103.93,27.51359767]
[1770109754266,3.52494785,103.98,103.94,23.91498626]